Cogmind - Beta 14 @@@ ROGUE MODE // 2025.03.05 @ 06:24:53 Player: Willow Result: Destroyed by K6-03W(R) with Subdweller Laser Performance ------------- Evolutions (0) 0 Regions Visited (3) 600 Robots Destroyed (39) 195 Value Destroyed (1022) 1022 Prototype IDs (0) 0 Alien Tech Used (0) 0 Bonus (75) 75 TOTAL SCORE: 1892 Bonus ------- Follower Combat Kills 75 Cogmind --------- Core Integrity 0/250 Matter 247/300 Energy 260/265 System Corruption 0% Temperature Cool (12) Movement Treading (160) Location -10/Subcaves Parts ------- > --- POWER (1) -------- Improved Ion Engine > --- PROPULSION (2) --- Light Treads Improved Treads > --- UTILITY (2) ------ Large Storage Unit > --- WEAPON (2) ------- Makeshift Laser Barrage Gun > --- INVENTORY (15) --- Light Treads Improved Treads Improved Treads Improved Treads Huge Storage Unit Large Matter Pod (150) Experimental Sensor Array Improved Targeting Computer Hacking Suite Makeshift Hacking Suite Heavy Assault Rifle Rocket Launcher Multitool Flail Peak State ------------ > --- POWER ------------ Improved Ion Engine > --- PROPULSION ------- Light Treads Improved Treads > --- UTILITY ---------- Improved Heat Sink Large Storage Unit > --- WEAPON ----------- Makeshift Laser Barrage Gun > --- INVENTORY -------- Light Treads Improved Treads Improved Treads Improved Treads Huge Storage Unit Large Matter Pod Experimental Sensor Array Improved Targeting Computer Hacking Suite Makeshift Hacking Suite Heavy Assault Rifle Rocket Launcher Multitool Flail [Rating: 19] Favorites ----------- Power Ion Engine Engine Ion Engine Propulsion Light Treads Treads Light Treads Utility Large Storage Unit Device Seismic Detector Storage Large Storage Unit Weapon Assault Rifle Energy Gun Subdweller Laser Energy Cannon Subdweller Beam Cannon Ballistic Gun Assault Rifle Impact Weapon Flail Build | -11 -10 -10 -10 ------- Run | Yrd Mat Min Sub Slots Evolved . | . . . . Power . | . . . . Propulsion . | . . . . Utility . | . . . . Weapon . | . . . . Parts Attached 30 | 7 6 4 13 Power 4 | 1 . 2 1 Engine 4 | 1 . 2 1 Core . | . . . . Reactor . | . . . . Propulsion 7 | 2 2 1 2 Treads 7 | 2 2 1 2 Leg . | . . . . Wheel . | . . . . Hover . | . . . . Flight . | . . . . Utility 4 | 2 1 . 1 Device 2 | 1 . . 1 Storage 2 | 1 1 . . Processor . | . . . . Hackware . | . . . . Protection . | . . . . Artifact . | . . . . Weapon 15 | 2 3 1 9 Energy Gun 2 | . 1 . 1 Energy Cannon 1 | . . . 1 Ballistic Gun 7 | 2 1 1 3 Ballistic Cannon . | . . . . Launcher . | . . . . Special Weapon . | . . . . Impact Weapon 5 | . 1 . 4 Slashing Weapon . | . . . . Piercing Weapon . | . . . . Special Melee Weapon . | . . . . Unidentified Prototypes . | . . . . Parts Lost 5 | . 2 . 3 Power . | . . . . Propulsion 2 | . 1 . 1 Utility 2 | . . . 2 Weapon 1 | . 1 . . Highest Loss Streak 2 | . 2 . 1 To Critical Strikes . | . . . . Average Slot Usage (%) 97 | . 92 100 99 Engine 14 | . 14 14 14 Treads 27 | . 24 28 27 Device 13 | . 14 14 13 Storage 14 | . 14 14 14 Energy Cannon 2 | . . . 5 Ballistic Gun 19 | . 20 24 15 Impact Weapon 4 | . 3 . 6 Peak Build Rating 19 | 7 11 12 19 Average Rating 11 | 5 7 10 14 On Entrance 7 | . 7 11 11 Naked Turns . | . . . . Heaviest Build 39 | 15 32 32 39 Greatest Support 43 | 40 43 43 43 Greatest Overweight (x) 1 | . 1 . . Average Overweight (x) . | . . . . Largest Inventory Capacity 15 | 8 15 15 15 Average Capacity 14 | 7 12 15 15 Most Carried 15 | 1 11 15 15 Average Carried 11 | . 5 13 14 Final Capacity 15 | 8 15 15 15 Final Carried 14 | 1 11 14 14 Class Distribution -------------------- 97% | Mutant Dominant Class ---------------- Mutant | -10/Materials Mutant | -10/Mines Mutant | -10/Subcaves Resources | -11 -10 -10 -10 ----------- Run | Yrd Mat Min Sub Matter Collected 1289 | 354 503 82 350 Remotely . | . . . . Salvage Created 1499 | 185 544 138 632 Parts 104 | 15 49 3 37 Haulers Intercepted . | . . . . Recyclers Shooed . | . . . . Parts Field Recycled . | . . . . Retrieved Matter . | . . . . Parts Self-Destructed 13 | . . . 13 Prevented . | . . . . Kills | -11 -10 -10 -10 ------- Run | Yrd Mat Min Sub Combat Hostiles Destroyed 28 | . 15 2 11 Melee 1 | . 1 . . Guns 20 | . 14 2 4 Cannons 6 | . . . 6 Classes Destroyed 9 | 2 5 . 2 Tunneler 5 | 5 . . . Recycler 2 | 1 . 1 . Operator 1 | . 1 . . Watcher 3 | . 3 . . Swarmer 6 | . 6 . . Grunt 10 | . 8 2 . Sentry 1 | . . . 1 Artisan 2 | . . . 2 Subdweller 11 | . 1 . 10 Best Kill Streak 7 | 5 7 1 2 Combat Bots Only 6 | . 6 1 2 Max Kills in Single Turn 1 | 1 1 1 1 Gunslinging . | . . . . Exploded . | . . . . Melee 1 | . 1 . . Uniques/NPCs Destroyed . | . . . . Combat | -11 -10 -10 -10 -------- Run | Yrd Mat Min Sub Hostile Shots Fired 129 | . 68 9 52 Missed 27 | . 13 3 11 Damage Taken 1673 | . 629 94 950 Core 264 | . 99 16 149 Absorbed by Shields . | . . . . Regen/Repaired (Parts) 208 | . 208 . . Core Remaining (%) 100 | 100 . . . Volleys Fired 138 | 14 54 7 63 Largest 2 | 2 2 2 2 Hottest 108 | 40 40 43 108 Shots Fired 260 | 28 101 14 117 Gun 225 | 28 101 14 82 Cannon 35 | . . . 35 Launcher . | . . . . Special . | . . . . Kinetic 219 | 28 101 14 76 Thermal 41 | . . . 41 Explosive . | . . . . Electromagnetic . | . . . . Robot Hit Streak 15 | 5 6 9 15 Robot Miss Streak 3 | 1 3 1 1 Penetration Max . | . . . . Secondary Targets 4 | . 4 . . Max Gunslinging Chain 1 | . 1 . . Shots Hit Robots 166 | 13 64 11 78 Core Hits 58 | 7 26 5 20 Critical Kills 3 | . 2 . 1 Critical Parts Destroyed . | . . . . Critical Strikes 3 | . 2 . 1 Meltdown 1 | . . . 1 Destroy 2 | . 2 . . Melee Attacks 28 | . 5 . 23 Impact 28 | . 5 . 23 Slashing . | . . . . Piercing . | . . . . Sneak Attacks 1 | . 1 . . Combat Hostiles 1 | . 1 . . Follow-up Attacks . | . . . . Damage Inflicted 2676 | 162 951 176 1387 Guns 1991 | 162 766 155 908 Cannons 479 | . . . 479 Explosions . | . . . . Melee 185 | . 185 . . Ramming 21 | . . 21 . Kinetic 1886 | 162 766 155 803 Thermal 584 | . . . 584 Explosive . | . . . . Electromagnetic . | . . . . Impact 185 | . 185 . . Slashing . | . . . . Piercing . | . . . . Highest Corruption . | . . . . Average Corruption . | . . . . Corruption Purged . | . . . . Corruption Blocked . | . . . . Overload Shots . | . . . . Overflow Damage 61 | . 61 . . Projectiles . | . . . . Explosions . | . . . . Melee 61 | . 61 . . Knockbacks 2 | . 1 1 . Impact 2 | . 1 1 . Kinetic . | . . . . Secondary . | . . . . Self-Inflicted Damage . | . . . . Shots . | . . . . Rammed 5 | . . 5 . Targets Rammed 6 | . . 6 . Kicked . | . . . . Crushed 1 | . . 1 . Highest Temperature 17 | . 2 3 17 Average Temperature 3 | . 2 3 4 Received Heat Transfer 492 | . 195 54 243 Siege Activations . | . . . . Robots Corrupted . | . . . . Combat Hostiles . | . . . . Parts Fried 2 | . 2 . . Impact Corruptions 2 | . 2 . . Robots Melted 1 | . . . 1 Combat Hostiles 1 | . . . 1 Parts Melted 4 | . 1 . 3 Heat Transferred 888 | . . . 888 Parts Sabotaged . | . . . . Parts Stolen . | . . . . Parts Stripped . | . . . . Power Chain Reactions . | . . . . Alert | -11 -10 -10 -10 ------- Run | Yrd Mat Min Sub Peak Influence 396 | 30 396 73 . Initial 19 | . 19 3 . Average 91 | 18 163 17 . Maximum Alert Level 1 | . 1 . . Low Security (%) 75 | 100 52 100 . Level 1 24 | . 47 . . Level 2 . | . . . . Level 3 . | . . . . Level 4 . | . . . . Level 5 . | . . . . High Security . | . . . . Max Security . | . . . . Squads Dispatched 6 | . 5 1 . Investigation 4 | . 4 . . Extermination . | . . . . Reinforcement 1 | . 1 . . Assault 1 | . . 1 . Garrison . | . . . . Intercept . | . . . . Searches Triggered . | . . . . Construction Impeded . | . . . . Haulers Reinforced . | . . . . Active Scanning Responses . | . . . . Cargo Convoy Interrupts . | . . . . Stealth | -11 -10 -10 -10 --------- Run | Yrd Mat Min Sub Distress Signals 1 | . 1 . . Communications Jammed . | . . . . Distress Signals . | . . . . Times Spotted 37 | . 21 3 13 Peak Tracking Total 5 | . 5 2 2 Tactical Retreats 1 | . 1 . . Traps | -11 -10 -10 -10 ------- Run | Yrd Mat Min Sub Traps Triggered 4 | . 3 . 1 Indirectly . | . . . . Trap Hack Attempts . | . . . . Triggered . | . . . . Disarmed . | . . . . Reprogrammed . | . . . . Reused . | . . . . Traps Extracted . | . . . . Installed . | . . . . Triggered . | . . . . Machines | -11 -10 -10 -10 ---------- Run | Yrd Mat Min Sub Machines Disabled . | . . . . Max in Single Turn . | . . . . Machines Repaired . | . . . . Machines Dismantled . | . . . . Machines Sabotaged . | . . . . Overloaded Fab Kills . | . . . . Hacking | -11 -10 -10 -10 --------- Run | Yrd Mat Min Sub Machines Accessed 10 | . 10 . . Terminals 7 | . 7 . . Fabricators . | . . . . Repair Stations 1 | . 1 . . Recycling Units 2 | . 2 . . Scanalyzers . | . . . . Garrison Access . | . . . . Total Hacks 28 | . 28 . . Successful 16 | . 16 . . Failed 12 | . 12 . . Catastrophic 2 | . 2 . . Database Lockouts . | . . . . Manual 17 | . 17 . . Terminals 20 | . 20 . . Fabricators . | . . . . Repair Stations 5 | . 5 . . Recycling Units 3 | . 3 . . Scanalyzers . | . . . . Garrison Access . | . . . . Terminal Hacks 2 | . 2 . . Robot Analysis 1 | . 1 . . Alert Level 1 | . 1 . . Fabricator Hacks . | . . . . Repair Station Hacks 4 | . 4 . . Scan Component 2 | . 2 . . Repair 2 | . 2 . . Recycling Unit Hacks . | . . . . Scanalyzer . | . . . . Garrison Access Hacks . | . . . . Unauthorized Hacks 10 | . 10 . . Terminals 8 | . 8 . . Botnet 3 | . 3 . . Skim 5 | . 5 . . Fabricators . | . . . . Repair Stations . | . . . . Recycling Units 2 | . 2 . . Tunnel 2 | . 2 . . Scanalyzers . | . . . . Garrison Access . | . . . . Data Cores Recovered . | . . . . Used . | . . . . Hacking Detections 8 | . 8 . . Full Trace Events 1 | . 1 . . Feedback Events . | . . . . Feedback Blocked . | . . . . Robot Schematics Acquired . | . . . . Robots Built . | . . . . Authchips . | . . . . Time . | . . . . Total Robot Build Rating . | . . . . Part Schematics Acquired . | . . . . Parts Built . | . . . . Authchips . | . . . . Time . | . . . . Total Part Build Rating . | . . . . Parts Repaired 2 | . 2 . . Time 52 | . 52 . . Parts Recycled . | . . . . Recycled Matter . | . . . . Retrieved Matter . | . . . . Retrieved Components . | . . . . Parts Scanalyzed . | . . . . Part Schematics Acquired . | . . . . Parts Damaged . | . . . . Bothacking | -11 -10 -10 -10 ------------ Run | Yrd Mat Min Sub Used RIF Installer . | . . . . Robots Hacked . | . . . . Non-combat . | . . . . Combat . | . . . . Robot Hacks Applied . | . . . . Relay Couplers Released . | . . . . Fabnet Peak Effective % . | . . . . Robots Rewired . | . . . . Allies Hacked . | . . . . Hacks Repelled . | . . . . Allies | -11 -10 -10 -10 -------- Run | Yrd Mat Min Sub Total Allies 1 | . . 1 . Largest Group 1 | . . 1 . Highest-Rated Group 31 | . . 31 . Highest-Rated Ally 31 | . . 31 . Total Orders . | . . . . Ally Attacks 7 | . . 7 . Total Damage 147 | . . 147 . Kills 3 | . . 3 . Allies Corrupted . | . . . . Allies Melted . | . . . . Intel | -11 -10 -10 -10 ------- Run | Yrd Mat Min Sub Robot Analysis Total 1 | . 1 . . Derelict Logs Recovered 1 | . . 1 . Drone Launches . | . . . . Drone Recoveries . | . . . . Exploration | -11 -10 -10 -10 ------------- Run | Yrd Mat Min Sub Turns Passed 4742 | 183 1327 1092 2140 Spaces Moved 2310 | 84 603 484 1139 Core 3 | 3 . . . Treads 2307 | 81 603 484 1139 Legs . | . . . . Wheels . | . . . . Hover . | . . . . Flight . | . . . . Fastest Speed 50 | 50 160 160 160 Average Speed 162 | 156 171 160 160 Slowest Speed 240 | 160 240 160 160 Overloaded Moves . | . . . . Propulsion Burnouts . | . . . . Robots Hopped . | . . . . Cave-ins Triggered . | . . . . Exploration Rate (%) 69 | 4 97 94 83 Regions Visited 3 Branch Regions 2 Pre-discovered Areas 4 | . 3 1 . Known Exits Taken . | . . . . Unknown Exits Taken 3 | 1 1 1 . Scrap Searched 4 | . . 3 1 Spaces Dug 4 | . . . 4 Terrain Destroyed 8 | . . . 8 Melee 3 | . . . 3 Projectile 5 | . . . 5 AOE . | . . . . Terrain Rammed . | . . . . Walls Destroyed . | . . . . Machines Disabled . | . . . . Actions | -11 -10 -10 -10 --------- Run | Yrd Mat Min Sub Total 2982 | 105 784 784 1309 Wait 445 | . 106 277 62 Move 2307 | 83 602 483 1139 Hop . | . . . . Pick Up 18 | 1 9 3 5 Fast Attach 14 | 7 5 2 . Attach 3 | . . . 3 Detach 2 | . 1 1 . Swap 13 | . 1 2 10 Drop 8 | . 1 3 4 Fire 138 | 14 54 7 63 Melee 28 | . 5 . 23 Ram . | . . . . Kick . | . . . . Crush 6 | . . 6 . Escape Stasis . | . . . . Rewire . | . . . . Trap . | . . . . Miscellaneous . | . . . . Route ------- -11/Scrapyard -10/Materials (discovered 5 exits: *Mat x3 / [*Min x2]) -10/Mines (discovered 2 exits: *Mat / [*Sub]) -10/Subcaves (discovered 3 exits: *Mat x2 / Rec) History --------- Turn | Location | Event 40 | -11/Scrapyard | Discovered new exit (range 14) 184 | -11/Scrapyard | Entered Materials 318 | -10/Materials | Build established: Mutant 421 | -10/Materials | Discovered new exit (range 10) 565 | -10/Materials | Discovered new exit (range 16) 806 | -10/Materials | Discovered new exit (range 16) 884 | -10/Materials | Derelicts attacked the area 1107 | -10/Materials | Learned location of 1 exit from Recycling 1148 | -10/Materials | Discovered new exit (range 10) 1151 | -10/Materials | Identified exit to Materials 1187 | -10/Materials | Loaded intel: 11 interactive machine locations 1214 | -10/Materials | Loaded intel: 38 machine locations 1233 | -10/Materials | Learned Storage garrison access intel 1243 | -10/Materials | Learned 2 Storage zone layouts 1244 | -10/Materials | Learned location of 2 exits from Subcaves 1266 | -10/Materials | Learned location of 1 exit from Recycling 1293 | -10/Materials | Learned location of Mines (-10) 1334 | -10/Materials | Repaired Lgt. Treads 1362 | -10/Materials | Repaired Assault Rifle 1511 | -10/Materials | Entered Mines 1515 | -10/Mines | Met a Derelict bent on vengeance 1537 | -10/Mines | Found a damaged Exp. Sensor Array with a note attached 1540 | -10/Mines | Found Prototype Device 1746 | -10/Mines | Joined a pair of Derelicts in attacking an 0b10 outpost 1854 | -10/Mines | Discovered exit to Materials (range 9) 2001 | -10/Mines | Met a Derelict testing a Signal Generator 2081 | -10/Mines | Received a Rocket Launcher from a helpful Derelict 2595 | -10/Mines | Discovered new exit (range 6) 2603 | -10/Mines | Entered Subcaves 2604 | -10/Subcaves | Identified exit to Recycling 2605 | -10/Subcaves | Identified exit to Materials 2663 | -10/Subcaves | Shifting Twisted Machinery released Battle Cannon 2664 | -10/Subcaves | Shifting Twisted Machinery released Barrage Gun 2976 | -10/Subcaves | Curiously followed by a Cobbler waking with a query about "LVR3C" 3041 | -10/Subcaves | Shifting Twisted Machinery released Mak. Laser 3050 | -10/Subcaves | Shifting Twisted Machinery released Mak. Shrapnel Gun 3394 | -10/Subcaves | A swath of the cavern ceiling suddenly collapsed 3514 | -10/Subcaves | Ambushed by angry Subdweller bent on revenge 3680 | -10/Subcaves | Core integrity fell below 50% 3896 | -10/Subcaves | Disturbed a concealed Subdweller 4208 | -10/Subcaves | Core integrity fell below 20% 4391 | -10/Subcaves | Ambushed by Subdwellers from Twisted Machinery 4504 | -10/Subcaves | A swath of the cavern ceiling suddenly collapsed 4743 | -10/Subcaves | Destroyed by K6-03W(R) with Subdweller Laser Last Messages --------------- 04356_ E6-BUD(O) puts together Spk. Treads. 04391_ MW-9SR(R) emerges from the Twisted Machinery. 04392_ MW-9SR(R) destroyed. 04396_ E6-BUD(O) puts together Sub. Shrapnel Launcher. 04404_ 0C-RN7(R) affixes Scrap Shield Fragment to Scrap Shield. 04406_ 0C-RN7(R) destroyed. 04421_ Acquired 31 matter. 04426_ E6-BUD(O) collects matter. A swath of the cavern ceiling suddenly collapses. 04588_ Sub. Beam Cannon shoots sparks and powers down. 04590_ Dropped Broken Sub. Beam Cannon. 04690_ Acquired Mak. Laser. 04717_ K6-03W(R): "SUBHATE!" 04721_ Acquired 6 matter. 04735_ Imp. Heat Sink destroyed. Map ----- +----------------------------------------------------+ | ##???????????????????????????????????????????????? | | ##??????????????????????????????????????????????? | | ##?????????????????????????????????????????????? | | ??????????????????????????????????????????????? | | ???????????????????????????????????????????????? | | ##???????????????????????????????????????????????? | | #????????????????????????????????????????????????? | | ###??????????????????????????????????????????????? | | #??????????????????????????????????????????????? | | ##??????????????????????????????????????????????? | | #####??????????????????????????????????######???? | | #???????????????????????????####??## "" ##??? | | #??????????????????????????## "#?## " #### | | #??????????????????????????# #?# "" | | ##?????????????????????????## ####" #""""" | | #?????????????????????????## ## ##""""" | | #????????????????????????## "#""""" | | ???##?????????????????????#### ""### | | ??????????????????????????# # # ""### | | ??????????????????????????## % ######%###% # | | ???????????????????????????# ### & #?????### ""[ | | ??????????????????????####?# #?#= ##???????## "" | | ??????????????????????# ### ### "##???????# "" | | ????????????????####### ## ## """ #???????# | | #???????????????# ## ] ###???????##### | | ##??????????????# @## #?????????????# | | #####??????????# R## ##?????????????? | | ## ##???####### ##?###??????????? | | #??##""" ## #??????????? | | ####""" O ] #??????????? | | "##"""" ## ###????????? | | [""""" ### ###### % ????? | | # """"" "### ##???# % ????? | | ## "" " ## #????# ##### ????? | | ?### "" ["" ## #????# #???### ## ????? | | ???# " ""### ####### ###????# #???????? | | ???#"" """#?# # # ### ###???# ##???????? | | ???## """"### #????##????????? | | ????## """""?##### ##??????????????? | | ?????# ###""##?????### ### ## ###???????????????? | | ?????###??###????????###?###?###?????????????????? | | ?????????????????????????????????????????????????? | | ?????????????????????????????????????????????????? | | ?????????????????????????????????????????????????? | | ?????????????????????????????????????????????????? | | ?????????????????????????????????????????????????? | | ?????????????????????????????????????????????????? | | ?????????????????????????????????????????????????? | | ?????????????????????????????????????????????????? | | ?????????????????????????????????????????????????? | +----------------------------------------------------+ Best States ------------- Heat Dissipation 39 Energy Generation 12 Energy Capacity 265 Matter Stores 300 Matter Capacity 300 Sight Range 16 Terrain Scan Density 10 Evasion (%) 40 Recoil Reduction 2 Item Schematics ----------------- None Robot Schematics ------------------ None Fabricated ------------ Nothing Alien Tech Used ----------------- None Achievements -------------- None Challenges ------------ None Game ------ Seed BarrageSuspensionTorch Manual? 0 Play Time 00:29:15 Cumulative 206.3 hours Start 2025.03.05 @ 05:53:27 End 2025.03.05 @ 06:24:53 Sessions 1 Manual Loads 0 Difficulty Rogue Special Mode None Game No. 98 Rogue 59 Adventurer 36 Explorer 3 Win Type - Total 6 Types 2/1/0/1/0/1/0/1/0 Lore% 67 Gallery% 66 Achievement% 64 Wizard Run 0 Options --------- Layout 1 ASCII 0 Keyboard 0 Movement Arrows Keybinds 0 Fullscreen 1 Font 24/Smallcaps Map View 50x35 Zoom Use 0% Tactical HUD 1 Map Filters NONE Filters NONE Steam 1 RUN: b5d9d2d0-69e6-49ba-ba4f-0604a1ad46ea